[Event "3rd FIDE WCCC Rapid U10 2019"]
[Site "Minsk"]
[Date "2019.08.17"]
[Round "5.1"]
[White "Zverev, Lev"]
[Black "Dyachuk, Artem"]
[Result "1-0"]
[ECO "B45"]
[WhiteElo "1881"]
[BlackElo "1634"]
[Annotator "NA"]
[PlyCount "59"]
[EventDate "2019.08.16"]
[EventType "swiss"]
[EventCountry "BLR"]
[SourceTitle "playchess.com"]
[Source "ChessBase"]
[SourceQuality "1"]
[TimeControl "600+5"]

1. e4 {[%emt 0:00:00]} c5 {[%emt 0:00:00]} 2. Nf3 {[%emt 0:00:00]} e6 {[%emt 0:00:00]} 3. d4 {[%emt 0:00:01]} cxd4 {[%emt 0:00:00]} 4. Nxd4 {[%emt 0:00:02]} Nc6 {[%emt 0:00:00]} 5. Nc3 {[%emt 0:00:17]} Bb4 {[%emt 0:00:04]} 6. Ndb5 {[%emt 0:00:29]} Nf6 {[%emt 0:02:25]} 7. a3 {[%emt 0:00:01]} Bxc3+ {[%emt 0:00:09]} 8. Nxc3 {[%emt 0:00:01]} d5 {[%emt 0:00:13]} 9. exd5 {[%emt 0:00:08]} exd5 {[%emt 0:00:02]} 10. Bd3 {[%emt 0:00:17]} Be6 {[%emt 0:00:09]} 11. O-O {[%emt 0:00:07]} O-O {[%emt 0:00:04]} 12. Bf4 {[%emt 0:00:09]} a6 {[%emt 0:00:50]} 13. Ne2 {[%emt 0:02:13]} Ne4 {[%emt 0:02:21]} 14. Ng3 {[%emt 0:00:56]} Qf6 {[%emt 0:00:50]} 15. Qc1 {[%emt 0:00:42]} Nc5 {[%emt 0:01:49]} 16. Be2 {[%emt 0:00:45]} Rfc8 {[%emt 0:01:46]} 17. Be3 {[%emt 0:02:07]} d4 {[%emt 0:00:10]} 18. Bg5 {[%emt 0:00:04]} Qe5 {[%emt 0:00:03]} 19. f4 {[%emt 0:00:15]} Qd5 {[%emt 0:00:04]} 20. f5 {[%emt 0:00:12]} Bd7 {[%emt 0:00:03]} 21. Bf3 {[%emt 0:01:29]} Qd6 {[%emt 0:00:18]} 22. f6 {[%emt 0:00:35]} Ne6 {[%emt 0:00:17]} 23. Ne4 {[%emt 0:00:49]} Qf8 {[%emt 0:00:08]} 24. fxg7 {[%emt 0:00:02]} Qxg7 {[%emt 0:00:02]} 25. Bh6 {[%emt 0:00:09]} Qg6 {[%emt 0:00:02]} 26. Kh1 {[%emt 0:00:03]} f5 {[%emt 0:00:06]} 27. Bh5 {[%emt 0:00:03]} fxe4 {[%emt 0:00:07]} 28. Bxg6 {[%emt 0:00:02]} hxg6 {[%emt 0:00:01]} 29. Rf6 {[%emt 0:00:03]} Kh7 {[%emt 0:00:03]} 30. Rf7+ {[%emt 0:00:01]} 1-0

[Event "3rd FIDE WCCC Rapid U10 2019"]
[Site "Minsk"]
[Date "2019.08.17"]
[Round "5.2"]
[White "Vetokhin, Savva"]
[Black "Bukreev, Stanislav"]
[Result "1-0"]
[ECO "C09"]
[WhiteElo "2016"]
[BlackElo "1257"]
[Annotator "NA"]
[PlyCount "97"]
[EventDate "2019.08.16"]
[EventType "swiss"]
[EventCountry "BLR"]
[SourceTitle "playchess.com"]
[Source "ChessBase"]
[SourceQuality "1"]
[TimeControl "600+5"]

1. e4 {[%emt 0:00:00]} e6 {[%emt 0:00:00]} 2. d4 {[%emt 0:00:00]} d5 {[%emt 0:00:00]} 3. Nd2 {[%emt 0:00:00]} c5 {[%emt 0:00:06]} 4. Ngf3 {[%emt 0:00:00]} Nc6 {[%emt 0:00:13]} 5. exd5 {[%emt 0:00:01]} exd5 {[%emt 0:00:04]} 6. Bb5 {[%emt 0:00:04]} Nf6 {[%emt 0:00:10]} 7. O-O {[%emt 0:00:04]} Be7 {[%emt 0:00:12]} 8. dxc5 {[%emt 0:00:03]} Bxc5 {[%emt 0:00:19]} 9. Re1+ {[%emt 0:00:01]} Be6 {[%emt 0:00:37]} 10. Nb3 {[%emt 0:00:03]} Be7 {[%emt 0:00:13]} 11. Nbd4 {[%emt 0:00:03]} Bd7 {[%emt 0:00:26]} 12. Qe2 {[%emt 0:00:36]} a6 {[%emt 0:01:49]} 13. Bxc6 {[%emt 0:00:11]} bxc6 {[%emt 0:00:16]} 14. Ne5 {[%emt 0:00:04]} Rc8 {[%emt 0:00:26]} 15. Nxd7 {[%emt 0:00:03]} Qxd7 {[%emt 0:00:21]} 16. Nf5 {[%emt 0:00:08]} Rc7 {[%emt 0:00:44]} 17. Bf4 {[%emt 0:00:25]} Ra7 {[%emt 0:00:15]} 18. Nxe7 {[%emt 0:01:33]} Qxe7 {[%emt 0:00:31]} 19. Qd3 {[%emt 0:00:01]} Ne4 {[%emt 0:00:12]} 20. f3 {[%emt 0:00:01]} O-O {[%emt 0:00:43]} 21. fxe4 {[%emt 0:00:03]} Rd7 {[%emt 0:00:16]} 22. exd5 {[%emt 0:00:08]} Qc5+ {[%emt 0:00:00]} 23. Be3 {[%emt 0:00:03]} Qxd5 {[%emt 0:00:05]} 24. Qxd5 {[%emt 0:00:02]} Rxd5 {[%emt 0:00:10]} 25. Rad1 {[%emt 0:00:01]} Rb5 {[%emt 0:00:15]} 26. b3 {[%emt 0:00:01]} h6 {[%emt 0:00:05]} 27. c4 {[%emt 0:00:01]} Ra5 {[%emt 0:00:07]} 28. Re2 {[%emt 0:00:05]} f5 {[%emt 0:00:03]} 29. Bb6 {[%emt 0:00:10]} Ra3 {[%emt 0:00:05]} 30. Bc5 {[%emt 0:00:01]} Ra5 {[%emt 0:00:03]} 31. Bxf8 {[%emt 0:00:02]} Kxf8 {[%emt 0:00:04]} 32. Rd7 {[%emt 0:00:01]} f4 {[%emt 0:00:04]} 33. a4 {[%emt 0:00:06]} Rf5 {[%emt 0:00:04]} 34. Ree7 {[%emt 0:00:01]} f3 {[%emt 0:00:03]} 35. gxf3 {[%emt 0:00:04]} Rxf3 36. Rxg7 {[%emt 0:00:07]} Rxb3 {[%emt 0:00:05]} 37. Rh7 {[%emt 0:00:04]} Rb1+ {[%emt 0:00:04]} 38. Kg2 {[%emt 0:00:03]} Rb2+ {[%emt 0:00:02]} 39. Kg3 {[%emt 0:00:01]} Rb3+ {[%emt 0:00:01]} 40. Kg4 {[%emt 0:00:01]} Ke8 {[%emt 0:00:04]} 41. Rb7 {[%emt 0:00:03]} Rxb7 {[%emt 0:00:05]} 42. Rxb7 {[%emt 0:00:02]} a5 {[%emt 0:00:01]} 43. Kf5 {[%emt 0:00:01]} c5 {[%emt 0:00:01]} 44. Ke6 {[%emt 0:00:01]} Kf8 {[%emt 0:00:01]} 45. h4 {[%emt 0:00:02]} h5 {[%emt 0:00:01]} 46. Ra7 {[%emt 0:00:02]} Kg8 {[%emt 0:00:02]} 47. Kf6 {[%emt 0:00:01]} Kh8 {[%emt 0:00:01]} 48. Kg6 {[%emt 0:00:01]} Kg8 {[%emt 0:00:00]} 49. Ra8# {[%emt 0:00:01]} 1-0

[Event "3rd FIDE WCCC Rapid U10 2019"]
[Site "Minsk"]
[Date "2019.08.17"]
[Round "5.3"]
[White "Samunenkov, Ihor"]
[Black "Zemlyanskii, Ivan"]
[Result "1-0"]
[ECO "E62"]
[WhiteElo "1964"]
[BlackElo "1571"]
[Annotator "NA"]
[PlyCount "112"]
[EventDate "2019.08.16"]
[EventType "swiss"]
[EventCountry "BLR"]
[SourceTitle "playchess.com"]
[Source "ChessBase"]
[SourceQuality "1"]
[TimeControl "600+5"]

1. Nf3 {[%emt 0:00:04]} Nf6 {[%emt 0:00:00]} 2. d4 {[%emt 0:00:03]} g6 {[%emt 0:00:01]} 3. c4 {[%emt 0:00:11]} Bg7 {[%emt 0:00:02]} 4. Nc3 {[%emt 0:00:02]} O-O {[%emt 0:00:03]} 5. g3 {[%emt 0:00:14]} d6 {[%emt 0:00:04]} 6. Bg2 {[%emt 0:00:01]} Nc6 {[%emt 0:00:03]} 7. d5 {[%emt 0:01:57]} Na5 {[%emt 0:00:03]} 8. Qd3 {[%emt 0:00:39]} c5 {[%emt 0:00:09]} 9. O-O {[%emt 0:00:11]} a6 {[%emt 0:00:09]} 10. Rb1 {[%emt 0:01:34]} b5 {[%emt 0:00:16]} 11. cxb5 {[%emt 0:00:12]} axb5 {[%emt 0:00:06]} 12. b4 {[%emt 0:00:09]} Nb7 {[%emt 0:01:57]} 13. Qxb5 {[%emt 0:01:36]} cxb4 {[%emt 0:00:48]} 14. Qxb4 {[%emt 0:00:06]} Nc5 {[%emt 0:00:04]} 15. Nd4 {[%emt 0:01:18]} Ba6 {[%emt 0:01:20]} 16. Nc6 {[%emt 0:00:17]} Qe8 {[%emt 0:00:31]} 17. Be3 {[%emt 0:00:22]} Nfd7 {[%emt 0:00:23]} 18. Bd4 {[%emt 0:00:18]} Bh6 {[%emt 0:00:46]} 19. Rfd1 {[%emt 0:00:47]} Rc8 {[%emt 0:00:32]} 20. Rb2 {[%emt 0:00:30]} e5 {[%emt 0:00:53]} 21. dxe6 {[%emt 0:00:23]} Nxe6 {[%emt 0:00:08]} 22. Qa4 {[%emt 0:00:23]} Nxd4 {[%emt 0:00:25]} 23. Qxd4 {[%emt 0:00:24]} Bg7 {[%emt 0:00:15]} 24. Qd2 {[%emt 0:00:10]} Nc5 {[%emt 0:00:41]} 25. Rb6 {[%emt 0:00:05]} Bc4 {[%emt 0:01:33]} 26. Bd5 {[%emt 0:00:01]} Bxc3 27. Qg5 {[%emt 0:00:07]} Rxc6 {[%emt 0:00:32]} 28. Bxc6 {[%emt 0:00:05]} Qxe2 {[%emt 0:00:07]} 29. Rbb1 {[%emt 0:00:03]} Bg7 {[%emt 0:00:27]} 30. Rxd6 {[%emt 0:00:06]} Qxa2 {[%emt 0:00:02]} 31. Rc1 {[%emt 0:00:07]} Nd3 32. Rf1 {[%emt 0:00:04]} Ne5 {[%emt 0:00:12]} 33. Rfd1 {[%emt 0:00:06]} Nxc6 {[%emt 0:00:05]} 34. Rxc6 {[%emt 0:00:01]} Be6 {[%emt 0:00:02]} 35. h4 {[%emt 0:00:07]} Qe2 {[%emt 0:00:04]} 36. Rd8 {[%emt 0:00:06]} Rxd8 {[%emt 0:00:08]} 37. Qxd8+ {[%emt 0:00:02]} Bf8 {[%emt 0:00:01]} 38. Rc1 {[%emt 0:00:08]} Qf3 {[%emt 0:00:03]} 39. Qd1 {[%emt 0:00:07]} Qa8 {[%emt 0:00:04]} 40. f3 {[%emt 0:00:05]} Qa7+ {[%emt 0:00:04]} 41. Kg2 {[%emt 0:00:01]} Qa2+ {[%emt 0:00:02]} 42. Rc2 {[%emt 0:00:01]} Qb3 {[%emt 0:00:01]} 43. Qe2 {[%emt 0:00:08]} Bf5 {[%emt 0:00:03]} 44. Rd2 {[%emt 0:00:04]} Be6 {[%emt 0:00:03]} 45. g4 {[%emt 0:00:06]} Qb4 {[%emt 0:00:07]} 46. Qe3 {[%emt 0:00:09]} Qb8 {[%emt 0:00:19]} 47. Re2 {[%emt 0:00:07]} Qd6 {[%emt 0:00:05]} 48. Qc3 {[%emt 0:00:05]} Bg7 {[%emt 0:00:05]} 49. Qc1 {[%emt 0:00:04]} h6 {[%emt 0:00:07]} 50. Rd2 {[%emt 0:00:01]} Qe5 {[%emt 0:00:04]} 51. Qd1 {[%emt 0:00:06]} Kh7 {[%emt 0:00:02]} 52. Re2 {[%emt 0:00:02]} Qf4 {[%emt 0:00:02]} 53. Re4 {[%emt 0:00:04]} Qc7 {[%emt 0:00:06]} 54. Qd3 {[%emt 0:00:04]} Qc1 {[%emt 0:00:02]} 55. h5 {[%emt 0:00:04]} Qb2+ {[%emt 0:00:05]} 56. Kh3 {[%emt 0:00:08]} Qf6 1-0

[Event "3rd FIDE WCCC Rapid U10 2019"]
[Site "Minsk"]
[Date "2019.08.17"]
[Round "5.4"]
[White "Shidlovskij, Artem"]
[Black "Toktomushev, Teimur"]
[Result "0-1"]
[ECO "A57"]
[WhiteElo "1668"]
[BlackElo "1977"]
[Annotator "NA"]
[PlyCount "82"]
[EventDate "2019.08.16"]
[EventType "swiss"]
[EventCountry "BLR"]
[SourceTitle "playchess.com"]
[Source "ChessBase"]
[SourceQuality "1"]
[TimeControl "600+5"]

1. d4 {[%emt 0:00:00]} Nf6 {[%emt 0:00:00]} 2. c4 {[%emt 0:00:00]} c5 {[%emt 0:00:00]} 3. d5 {[%emt 0:00:00]} b5 {[%emt 0:00:00]} 4. cxb5 a6 5. e3 {[%emt 0:00:06]} g6 {[%emt 0:00:15]} 6. Nc3 {[%emt 0:00:07]} Bg7 {[%emt 0:01:03]} 7. Nf3 {[%emt 0:00:03]} O-O {[%emt 0:00:03]} 8. a4 {[%emt 0:00:05]} axb5 {[%emt 0:00:24]} 9. Bxb5 {[%emt 0:00:14]} Ba6 {[%emt 0:00:18]} 10. O-O {[%emt 0:00:16]} d6 {[%emt 0:00:02]} 11. Bd2 {[%emt 0:00:28]} Bxb5 {[%emt 0:00:28]} 12. axb5 {[%emt 0:00:25]} Nbd7 {[%emt 0:00:01]} 13. Qb3 {[%emt 0:01:11]} Qc7 {[%emt 0:00:30]} 14. Ra3 {[%emt 0:00:13]} Qb7 {[%emt 0:01:44]} 15. e4 {[%emt 0:00:50]} Rfb8 {[%emt 0:00:40]} 16. Rfa1 {[%emt 0:00:12]} Rxa3 {[%emt 0:01:15]} 17. bxa3 {[%emt 0:00:10]} Nxe4 {[%emt 0:00:31]} 18. Re1 {[%emt 0:04:18]} Nxc3 {[%emt 0:01:01]} 19. Bxc3 {[%emt 0:00:02]} Qxb5 {[%emt 0:00:49]} 20. Qxb5 {[%emt 0:00:56]} Rxb5 {[%emt 0:00:03]} 21. Bxg7 {[%emt 0:00:01]} Kxg7 {[%emt 0:00:03]} 22. Rxe7 {[%emt 0:00:33]} Rb1+ {[%emt 0:00:29]} 23. Re1 {[%emt 0:00:08]} Rxe1+ {[%emt 0:00:34]} 24. Nxe1 {[%emt 0:00:01]} Nb6 {[%emt 0:00:05]} 25. Nd3 {[%emt 0:00:45]} Nxd5 {[%emt 0:00:01]} 26. a4 {[%emt 0:00:11]} Nb4 {[%emt 0:00:27]} 27. Nb2 {[%emt 0:00:43]} Kf6 {[%emt 0:00:12]} 28. Kf1 {[%emt 0:00:01]} Ke5 {[%emt 0:00:07]} 29. Ke2 {[%emt 0:00:20]} d5 {[%emt 0:00:13]} 30. Nd1 {[%emt 0:00:04]} Kd6 {[%emt 0:00:06]} 31. Kd2 {[%emt 0:00:04]} Kc6 {[%emt 0:00:14]} 32. Nc3 {[%emt 0:00:05]} c4 {[%emt 0:00:22]} 33. Ke3 {[%emt 0:00:06]} Kc5 {[%emt 0:00:06]} 34. Ne2 {[%emt 0:00:05]} Nc6 {[%emt 0:00:14]} 35. Kd2 {[%emt 0:00:06]} d4 {[%emt 0:00:08]} 36. f3 {[%emt 0:00:04]} Kb4 {[%emt 0:00:04]} 37. Nf4 {[%emt 0:00:04]} Kxa4 {[%emt 0:00:06]} 38. Nd5 {[%emt 0:00:02]} Kb3 {[%emt 0:00:02]} 39. h4 {[%emt 0:00:05]} c3+ {[%emt 0:00:03]} 40. Kc1 {[%emt 0:00:02]} Nb4 {[%emt 0:00:06]} 41. Nf4 {[%emt 0:00:07]} d3 {[%emt 0:00:06]} 0-1

[Event "3rd FIDE WCCC Rapid U10 2019"]
[Site "Minsk"]
[Date "2019.08.17"]
[Round "5.5"]
[White "Koshulyan, Egor A."]
[Black "Hvozdz, Aliaksandr"]
[Result "1-0"]
[ECO "B01"]
[WhiteElo "1872"]
[BlackElo "1699"]
[Annotator "NA"]
[PlyCount "137"]
[EventDate "2019.08.16"]
[EventType "swiss"]
[EventCountry "BLR"]
[SourceTitle "playchess.com"]
[Source "ChessBase"]
[SourceQuality "1"]
[TimeControl "600+5"]

1. e4 {[%emt 0:00:00]} d5 {[%emt 0:00:00]} 2. exd5 {[%emt 0:00:00]} Qxd5 {[%emt 0:00:00]} 3. Nc3 {[%emt 0:00:00]} Qd6 {[%emt 0:00:00]} 4. d4 {[%emt 0:00:03]} Nf6 {[%emt 0:00:00]} 5. Nf3 {[%emt 0:00:04]} c6 {[%emt 0:00:00]} 6. g3 {[%emt 0:00:05]} Bf5 {[%emt 0:00:00]} 7. Bg2 e6 8. Bf4 {[%emt 0:00:12]} Qd8 {[%emt 0:00:00]} 9. Qd2 {[%emt 0:00:31]} Be7 {[%emt 0:00:04]} 10. O-O {[%emt 0:00:06]} O-O {[%emt 0:00:05]} 11. Rfe1 {[%emt 0:00:31]} Nd5 {[%emt 0:00:22]} 12. Nxd5 {[%emt 0:00:40]} cxd5 {[%emt 0:00:39]} 13. c3 {[%emt 0:01:23]} Nd7 {[%emt 0:00:51]} 14. Rad1 {[%emt 0:00:53]} Qa5 {[%emt 0:00:47]} 15. a3 {[%emt 0:00:55]} Nb6 {[%emt 0:00:43]} 16. Ne5 {[%emt 0:00:02]} Bf6 {[%emt 0:00:30]} 17. Qe2 {[%emt 0:00:34]} Bxe5 {[%emt 0:00:58]} 18. Bxe5 {[%emt 0:00:01]} Nc4 {[%emt 0:00:40]} 19. Bf4 {[%emt 0:00:26]} Qb5 {[%emt 0:01:05]} 20. g4 {[%emt 0:01:37]} Bg6 {[%emt 0:00:15]} 21. h4 {[%emt 0:00:03]} h6 {[%emt 0:00:54]} 22. h5 {[%emt 0:00:29]} Bh7 {[%emt 0:00:02]} 23. g5 {[%emt 0:00:01]} hxg5 {[%emt 0:00:32]} 24. Bxg5 {[%emt 0:00:01]} Qxb2 {[%emt 0:00:25]} 25. Qg4 {[%emt 0:00:06]} Bf5 {[%emt 0:01:08]} 26. Qg3 {[%emt 0:00:02]} Kh7 {[%emt 0:00:42]} 27. h6 {[%emt 0:00:37]} g6 {[%emt 0:00:12]} 28. Bf6 {[%emt 0:02:06]} Qxa3 {[%emt 0:00:22]} 29. Bg7 {[%emt 0:00:10]} Rfe8 {[%emt 0:00:17]} 30. Qc7 {[%emt 0:00:25]} Qe7 {[%emt 0:00:10]} 31. Qg3 {[%emt 0:00:02]} a5 {[%emt 0:00:07]} 32. Bxd5 {[%emt 0:00:02]} Nb2 {[%emt 0:00:22]} 33. Rd2 {[%emt 0:00:03]} Nd3 {[%emt 0:00:09]} 34. Rxd3 Bxd3 {[%emt 0:00:01]} 35. Qxd3 {[%emt 0:00:04]} Qg5+ {[%emt 0:00:02]} 36. Bg2 {[%emt 0:00:01]} a4 {[%emt 0:00:03]} 37. Ra1 {[%emt 0:00:07]} a3 {[%emt 0:00:01]} 38. c4 {[%emt 0:00:01]} a2 {[%emt 0:00:04]} 39. Qc2 {[%emt 0:00:03]} Qa5 {[%emt 0:00:03]} 40. Bxb7 {[%emt 0:00:18]} Ra7 {[%emt 0:00:07]} 41. Bg2 {[%emt 0:00:01]} Rb8 {[%emt 0:00:06]} 42. d5 {[%emt 0:00:04]} exd5 {[%emt 0:00:08]} 43. Bxd5 {[%emt 0:00:07]} Rc8 {[%emt 0:00:11]} 44. Qb2 {[%emt 0:00:13]} Qa3 {[%emt 0:00:14]} 45. Qc2 {[%emt 0:00:10]} Qc5 {[%emt 0:00:07]} 46. Rxa2 {[%emt 0:00:03]} Rxa2 {[%emt 0:00:07]} 47. Qxa2 {[%emt 0:00:00]} Re8 {[%emt 0:00:06]} 48. Qd2 {[%emt 0:00:01]} Qe7 {[%emt 0:00:05]} 49. Qf4 {[%emt 0:00:06]} Qe1+ {[%emt 0:00:09]} 50. Kg2 {[%emt 0:00:00]} Re7 {[%emt 0:00:02]} 51. Bf8 {[%emt 0:00:04]} Ra7 {[%emt 0:00:08]} 52. Qd4 {[%emt 0:00:06]} Qa1 {[%emt 0:00:05]} 53. Qxa1 {[%emt 0:00:10]} Rxa1 {[%emt 0:00:02]} 54. Bxf7 {[%emt 0:00:01]} Rc1 {[%emt 0:00:02]} 55. Bd5 {[%emt 0:00:01]} g5 {[%emt 0:00:02]} 56. c5 {[%emt 0:00:02]} Kg6 {[%emt 0:00:04]} 57. Be4+ {[%emt 0:00:01]} Kf7 {[%emt 0:00:07]} 58. h7 {[%emt 0:00:01]} Kxf8 {[%emt 0:00:02]} 59. h8=Q+ {[%emt 0:00:01]} Kf7 {[%emt 0:00:01]} 60. Bd5+ {[%emt 0:00:01]} Ke7 {[%emt 0:00:02]} 61. Qg7+ {[%emt 0:00:00]} Kd8 {[%emt 0:00:02]} 62. Qxg5+ {[%emt 0:00:06]} Ke8 {[%emt 0:00:03]} 63. Qxc1 {[%emt 0:00:04]} Ke7 {[%emt 0:00:05]} 64. Qg5+ {[%emt 0:00:02]} Kf8 {[%emt 0:00:02]} 65. Qf6+ {[%emt 0:00:03]} Ke8 {[%emt 0:00:00]} 66. Qf7+ {[%emt 0:00:02]} Kd8 {[%emt 0:00:01]} 67. c6 {[%emt 0:00:01]} Kc8 {[%emt 0:00:01]} 68. Qd7+ {[%emt 0:00:01]} Kb8 {[%emt 0:00:01]} 69. Qb7# {[%emt 0:00:01]} 1-0